[Event "Czech Open GM 2020"]
[Site "Pardubice"]
[Date "2020.09.27"]
[Round "8.2"]
[White "Golubka, Petro"]
[Black "Noe, Christopher"]
[Result "1/2-1/2"]
[ECO "E18"]
[WhiteElo "2488"]
[BlackElo "2519"]
[Annotator "ChessBase"]
[PlyCount "71"]
[EventDate "2020.09.21"]
[EventCountry "CZE"]
[SourceTitle "playchess.com"]
[Source "ChessBase"]
[SourceQuality "1"]
[TimeControl "40/5400+30:1800+30"]

1. Nf3 {[%emt 0:00:00]} Nf6 {[%emt 0:00:00]} 2. c4 {[%emt 0:00:00]} e6 {[%emt 0:00:00]} 3. d4 {[%emt 0:00:02]} b6 {[%emt 0:00:11]} 4. g3 {[%emt 0:00:48]} Bb7 {[%emt 0:00:06]} 5. Bg2 {[%emt 0:00:05]} Be7 {[%emt 0:00:41]} 6. O-O {[%emt 0:00:07]} O-O {[%emt 0:00:05]} 7. Nc3 {[%emt 0:01:51]} Ne4 {[%emt 0:00:45]} 8. Bd2 {[%emt 0:00:09]} Nxd2 {[%emt 0:04:39]} 9. Qxd2 {[%emt 0:00:13]} d6 {[%emt 0:00:29]} 10. d5 {[%emt 0:03:48]} e5 {[%emt 0:02:52]} 11. e4 {[%emt 0:00:14]} Nd7 {[%emt 0:00:33]} 12. b4 {[%emt 0:06:50]} Nf6 {[%emt 0:08:51]} 13. a3 {[%emt 0:03:02]} c6 {[%emt 0:10:12]} 14. dxc6 {[%emt 0:02:33]} Bxc6 {[%emt 0:00:02]} 15. Qd3 {[%emt 0:00:14]} Bd7 {[%emt 0:02:46]} 16. Rfd1 {[%emt 0:04:36]} Qb8 {[%emt 0:09:07]} 17. Nh4 {[%emt 0:04:44]} g6 {[%emt 0:05:01]} 18. Bf3 {[%emt 0:04:30]} Be6 {[%emt 0:03:22]} 19. Ng2 {[%emt 0:00:16]} Qb7 {[%emt 0:01:02]} 20. Ne3 {[%emt 0:01:12]} Rac8 {[%emt 0:01:04]} 21. Rac1 {[%emt 0:03:42]} Qa6 {[%emt 0:09:23]} 22. Nb5 {[%emt 0:01:54]} Rfd8 {[%emt 0:02:30]} 23. Be2 {[%emt 0:02:17]} Qb7 {[%emt 0:09:52]} 24. Nc3 {[%emt 0:00:56]} Rc7 {[%emt 0:01:29]} 25. h4 {[%emt 0:02:21]} Rdc8 {[%emt 0:02:25]} 26. Qb1 {[%emt 0:04:16]} a6 {[%emt 0:01:35]} 27. Ncd5 {[%emt 0:08:37]} Nxd5 {[%emt 0:00:36]} 28. Nxd5 {[%emt 0:00:48]} Rc6 {[%emt 0:04:56]} 29. c5 {[%emt 0:06:03]} b5 {[%emt 0:02:39]} 30. cxd6 {[%emt 0:09:43]} Bxd6 {[%emt 0:00:15]} 31. Rxc6 {[%emt 0:01:14]} Qxc6 {[%emt 0:00:32]} 32. Qd3 {[%emt 0:00:09]} Bxd5 {[%emt 0:04:01]} 33. Qxd5 {[%emt 0:00:18]} Qxd5 {[%emt 0:00:07]} 34. Rxd5 {[%emt 0:00:04]} Rc6 {[%emt 0:00:52]} 35. h5 {[%emt 0:00:53]} Kf8 {[%emt 0:02:46]} 36. Rd3 {[%emt 0:05:09]} 1/2-1/2

[Event "Czech Open GM 2020"]
[Site "Pardubice"]
[Date "2020.09.27"]
[Round "8.3"]
[White "Vogel, Roven"]
[Black "Kevlishvili, Robby"]
[Result "0-1"]
[ECO "E14"]
[WhiteElo "2456"]
[BlackElo "2478"]
[Annotator "ChessBase"]
[PlyCount "68"]
[EventDate "2020.09.21"]
[EventCountry "CZE"]
[SourceTitle "playchess.com"]
[Source "ChessBase"]
[SourceQuality "1"]
[TimeControl "40/5400+30:1800+30"]

1. Nf3 {[%emt 0:00:00]} d5 {[%emt 0:00:00]} 2. e3 {[%emt 0:00:00]} Nf6 {[%emt 0:00:06]} 3. c4 {[%emt 0:00:33]} e6 {[%emt 0:00:21]} 4. d4 {[%emt 0:00:40]} b6 {[%emt 0:01:01]} 5. Nc3 {[%emt 0:01:28]} Bb7 {[%emt 0:00:09]} 6. cxd5 {[%emt 0:00:56]} exd5 {[%emt 0:01:30]} 7. Bb5+ {[%emt 0:00:43]} c6 {[%emt 0:01:33]} 8. Bd3 {[%emt 0:02:39]} Be7 {[%emt 0:04:24]} 9. Ne5 {[%emt 0:11:19]} O-O {[%emt 0:01:38]} 10. O-O {[%emt 0:00:39]} c5 {[%emt 0:00:31]} 11. Qf3 {[%emt 0:07:25]} Nc6 {[%emt 0:05:58]} 12. Qh3 {[%emt 0:01:15]} Nxe5 {[%emt 0:29:14]} 13. dxe5 {[%emt 0:00:08]} Ne4 {[%emt 0:00:02]} 14. Rd1 {[%emt 0:15:18]} Qc8 {[%emt 0:03:36]} 15. Qxc8 {[%emt 0:06:47]} Rfxc8 {[%emt 0:00:11]} 16. Nxe4 {[%emt 0:00:12]} dxe4 {[%emt 0:00:14]} 17. Bc4 {[%emt 0:00:39]} Rd8 {[%emt 0:00:44]} 18. Bd2 {[%emt 0:02:32]} Bc6 {[%emt 0:06:14]} 19. Ba6 {[%emt 0:03:02]} Kf8 {[%emt 0:01:38]} 20. Bc3 {[%emt 0:02:38]} Rxd1+ {[%emt 0:00:58]} 21. Rxd1 {[%emt 0:00:14]} Rd8 {[%emt 0:00:24]} 22. Rxd8+ {[%emt 0:02:25]} Bxd8 {[%emt 0:00:04]} 23. Bc8 {[%emt 0:00:16]} a5 {[%emt 0:01:15]} 24. Bg4 {[%emt 0:10:29]} b5 {[%emt 0:01:36]} 25. f4 {[%emt 0:02:11]} b4 {[%emt 0:02:00]} 26. Bd2 {[%emt 0:01:00]} Bd5 {[%emt 0:02:31]} 27. a3 {[%emt 0:00:39]} f6 {[%emt 0:00:30]} 28. Be1 {[%emt 0:00:30]} fxe5 {[%emt 0:01:07]} 29. fxe5 {[%emt 0:02:12]} Bc7 {[%emt 0:00:19]} 30. Bg3 {[%emt 0:00:05]} c4 {[%emt 0:00:46]} 31. axb4 {[%emt 0:00:05]} axb4 {[%emt 0:00:03]} 32. Be1 {[%emt 0:00:07]} c3 {[%emt 0:00:23]} 33. bxc3 {[%emt 0:00:06]} b3 {[%emt 0:00:06]} 34. Bd1 {[%emt 0:00:07]} Bc4 {[%emt 0:00:34]} 0-1

[Event "Czech Open GM 2020"]
[Site "Pardubice"]
[Date "2020.09.27"]
[Round "8.4"]
[White "Jurcik, Marian"]
[Black "Stocek, Jiri"]
[Result "0-1"]
[ECO "B80"]
[WhiteElo "2426"]
[BlackElo "2595"]
[Annotator "ChessBase"]
[PlyCount "106"]
[EventDate "2020.09.21"]
[EventCountry "CZE"]
[SourceTitle "playchess.com"]
[Source "ChessBase"]
[SourceQuality "1"]
[TimeControl "40/5400+30:1800+30"]

1. e4 {[%emt 0:00:00]} c5 {[%emt 0:00:41]} 2. Nc3 {[%emt 0:00:00]} e6 {[%emt 0:04:37]} 3. Nge2 {[%emt 0:00:38]} Nf6 {[%emt 0:09:29]} 4. g3 {[%emt 0:09:47]} Nc6 {[%emt 0:03:43]} 5. Bg2 {[%emt 0:00:08]} Be7 {[%emt 0:00:47]} 6. d4 {[%emt 0:04:37]} cxd4 {[%emt 0:00:16]} 7. Nxd4 {[%emt 0:00:02]} O-O {[%emt 0:00:34]} 8. O-O {[%emt 0:01:36]} d6 {[%emt 0:01:19]} 9. b3 {[%emt 0:09:09]} Bd7 {[%emt 0:01:09]} 10. Bb2 {[%emt 0:00:07]} Rc8 {[%emt 0:03:10]} 11. a4 {[%emt 0:15:46]} a6 {[%emt 0:06:58]} 12. Re1 {[%emt 0:11:05]} Nxd4 {[%emt 0:10:25]} 13. Qxd4 {[%emt 0:00:02]} Qa5 {[%emt 0:00:33]} 14. Re2 {[%emt 0:03:09]} Rfd8 {[%emt 0:05:13]} 15. Qd2 {[%emt 0:04:10]} Kf8 {[%emt 0:04:11]} 16. Qd3 {[%emt 0:06:35]} Bc6 {[%emt 0:06:13]} 17. Rd1 {[%emt 0:09:18]} h5 {[%emt 0:03:08]} 18. Red2 {[%emt 0:03:34]} b5 {[%emt 0:11:46]} 19. axb5 {[%emt 0:00:03]} axb5 {[%emt 0:00:05]} 20. Qe2 {[%emt 0:11:46]} b4 {[%emt 0:02:29]} 21. Na4 {[%emt 0:00:01]} h4 {[%emt 0:04:55]} 22. Bd4 {[%emt 0:01:06]} Nd7 {[%emt 0:02:16]} 23. Nb2 {[%emt 0:00:56]} Qg5 {[%emt 0:03:20]} 24. Nd3 {[%emt 0:03:11]} Qb5 {[%emt 0:01:41]} 25. Qg4 {[%emt 0:00:59]} g6 {[%emt 0:02:09]} 26. gxh4 {[%emt 0:00:31]} e5 {[%emt 0:02:41]} 27. Be3 {[%emt 0:00:57]} Nf6 {[%emt 0:00:13]} 28. Qe2 {[%emt 0:00:40]} Qb7 {[%emt 0:01:52]} 29. Re1 {[%emt 0:00:01]} Kg7 {[%emt 0:01:20]} 30. Bg5 {[%emt 0:00:19]} Rh8 {[%emt 0:01:25]} 31. Bf3 {[%emt 0:01:04]} Bb5 {[%emt 0:01:33]} 32. Qe3 {[%emt 0:01:46]} Bxd3 {[%emt 0:00:35]} 33. Qxd3 {[%emt 0:00:44]} Rc3 {[%emt 0:00:40]} 34. Qe2 {[%emt 0:00:02]} Ne8 {[%emt 0:02:52]} 35. Rd3 {[%emt 0:01:14]} Rxd3 {[%emt 0:00:41]} 36. Qxd3 {[%emt 0:00:11]} Bxg5 {[%emt 0:00:13]} 37. hxg5 {[%emt 0:00:01]} Qe7 {[%emt 0:00:19]} 38. Qd2 {[%emt 0:02:16]} Rh4 {[%emt 0:00:45]} 39. Bg2 {[%emt 0:00:53]} Nc7 {[%emt 0:02:04]} 40. Qxb4 {[%emt 0:00:58]} Qxg5 {[%emt 0:00:51]} 41. Re3 {[%emt 0:30:29]} Ne6 {[%emt 0:30:44]} 42. Qe1 {[%emt 0:00:00]} Nf4 {[%emt 0:00:00]} 43. Qf1 {[%emt 0:00:00]} Rh8 {[%emt 0:00:00]} 44. Kh1 {[%emt 0:00:00]} Ra8 {[%emt 0:00:00]} 45. Rg3 {[%emt 0:00:00]} Qe7 {[%emt 0:00:00]} 46. h3 {[%emt 0:00:00]} Ra2 {[%emt 0:00:00]} 47. Qc4 {[%emt 0:00:00]} Qa7 {[%emt 0:00:00]} 48. Rf3 {[%emt 0:00:00]} Qa3 {[%emt 0:00:00]} 49. Bf1 {[%emt 0:00:00]} Qc1 {[%emt 0:00:00]} 50. c3 {[%emt 0:01:58]} Qd1 {[%emt 0:00:00]} 51. Rxf4 {[%emt 0:01:39]} exf4 {[%emt 0:00:00]} 52. Kg2 {[%emt 0:00:17]} Rd2 {[%emt 0:00:00]} 53. b4 {[%emt 0:01:23]} Qe1 {[%emt 0:00:00]} 0-1

[Event "Czech Open GM 2020"]
[Site "Pardubice"]
[Date "2020.09.27"]
[Round "8.5"]
[White "Nemec, Jachym"]
[Black "Plat, Vojtech"]
[Result "1/2-1/2"]
[ECO "E91"]
[WhiteElo "2150"]
[BlackElo "2566"]
[Annotator "ChessBase"]
[PlyCount "68"]
[EventDate "2020.09.21"]
[EventCountry "CZE"]
[SourceTitle "playchess.com"]
[Source "ChessBase"]
[SourceQuality "1"]
[TimeControl "40/5400+30:1800+30"]

1. d4 {[%emt 0:00:00]} Nf6 {[%emt 0:00:00]} 2. Nf3 {[%emt 0:00:00]} g6 {[%emt 0:00:00]} 3. c4 {[%emt 0:00:00]} Bg7 {[%emt 0:00:04]} 4. Nc3 {[%emt 0:00:00]} O-O {[%emt 0:01:41]} 5. e4 {[%emt 0:00:01]} d6 {[%emt 0:00:04]} 6. Be2 {[%emt 0:00:06]} Nc6 {[%emt 0:00:19]} 7. d5 {[%emt 0:03:42]} Nb8 {[%emt 0:00:03]} 8. Be3 {[%emt 0:03:42]} e6 {[%emt 0:00:31]} 9. Nd2 {[%emt 0:07:12]} exd5 {[%emt 0:00:18]} 10. cxd5 {[%emt 0:00:14]} Re8 {[%emt 0:02:07]} 11. O-O {[%emt 0:00:33]} c6 {[%emt 0:07:10]} 12. Qb3 {[%emt 0:07:23]} Nbd7 {[%emt 0:04:39]} 13. Nc4 {[%emt 0:07:31]} Bf8 {[%emt 0:05:44]} 14. dxc6 {[%emt 0:04:58]} bxc6 {[%emt 0:00:03]} 15. Rfd1 {[%emt 0:00:11]} Re6 {[%emt 0:02:37]} 16. Rac1 {[%emt 0:02:41]} Qc7 {[%emt 0:18:11]} 17. Qa4 {[%emt 0:11:20]} c5 {[%emt 0:12:27]} 18. Bf3 {[%emt 0:10:11]} Rb8 {[%emt 0:12:38]} 19. Nd5 {[%emt 0:09:54]} Nxd5 {[%emt 0:00:12]} 20. exd5 {[%emt 0:00:05]} Rxe3 {[%emt 0:00:07]} 21. Nxe3 {[%emt 0:00:53]} Ne5 {[%emt 0:00:29]} 22. Be2 {[%emt 0:02:20]} Rxb2 {[%emt 0:00:52]} 23. Bf1 {[%emt 0:00:29]} Qe7 {[%emt 0:01:34]} 24. Rb1 {[%emt 0:01:03]} Rb6 {[%emt 0:02:28]} 25. Rxb6 {[%emt 0:01:22]} axb6 {[%emt 0:00:01]} 26. Rb1 {[%emt 0:00:09]} Bd7 {[%emt 0:02:41]} 27. Qa8 {[%emt 0:04:44]} f5 {[%emt 0:02:13]} 28. Rxb6 {[%emt 0:04:04]} f4 {[%emt 0:01:53]} 29. Nc4 {[%emt 0:00:06]} Nxc4 {[%emt 0:00:39]} 30. Bxc4 {[%emt 0:00:05]} f3 {[%emt 0:00:04]} 31. Bf1 {[%emt 0:08:11]} fxg2 {[%emt 0:00:02]} 32. Bxg2 {[%emt 0:00:05]} c4 {[%emt 0:01:17]} 33. Qa5 {[%emt 0:04:08]} Qe5 {[%emt 0:04:43]} 34. Rb8 {[%emt 0:01:30]} Qa1+ {[%emt 0:13:12]} 1/2-1/2

[Event "Czech Open GM 2020"]
[Site "Pardubice"]
[Date "2020.09.27"]
[Round "8.6"]
[White "Mendonca, Leon Luke"]
[Black "Kueppers, Timo"]
[Result "1-0"]
[ECO "A30"]
[WhiteElo "2490"]
[BlackElo "2277"]
[Annotator "ChessBase"]
[PlyCount "64"]
[EventDate "2020.09.21"]
[EventCountry "CZE"]
[SourceTitle "playchess.com"]
[Source "ChessBase"]
[SourceQuality "1"]
[TimeControl "40/5400+30:1800+30"]

1. Nf3 {[%emt 0:00:00]} c5 {[%emt 0:00:32]} 2. b3 {[%emt 0:00:20]} Nc6 {[%emt 0:04:33]} 3. Bb2 {[%emt 0:00:45]} Nf6 {[%emt 0:01:51]} 4. c4 {[%emt 0:02:40]} d5 {[%emt 0:00:56]} 5. cxd5 {[%emt 0:01:05]} Nxd5 {[%emt 0:01:14]} 6. Nc3 {[%emt 0:01:25]} e5 {[%emt 0:06:26]} 7. e3 {[%emt 0:01:49]} Nc7 {[%emt 0:07:51]} 8. Nb5 {[%emt 0:12:30]} a6 {[%emt 0:11:37]} 9. Nxc7+ {[%emt 0:02:16]} Qxc7 {[%emt 0:00:10]} 10. Qc2 {[%emt 0:07:15]} Be7 {[%emt 0:03:09]} 11. a3 {[%emt 0:16:36]} Be6 {[%emt 0:08:08]} 12. h4 {[%emt 0:19:03]} h6 {[%emt 0:14:21]} 13. Bc4 {[%emt 0:03:48]} Bxc4 {[%emt 0:01:54]} 14. bxc4 {[%emt 0:01:23]} O-O {[%emt 0:08:05]} 15. Qe4 {[%emt 0:03:43]} Rfe8 {[%emt 0:02:14]} 16. g4 {[%emt 0:04:00]} g6 {[%emt 0:09:05]} 17. g5 {[%emt 0:10:29]} h5 {[%emt 0:01:24]} 18. O-O {[%emt 0:00:50]} Bf8 {[%emt 0:01:08]} 19. Rab1 {[%emt 0:01:18]} Rab8 {[%emt 0:06:49]} 20. Rfc1 {[%emt 0:01:22]} b5 {[%emt 0:01:34]} 21. cxb5 {[%emt 0:01:16]} axb5 {[%emt 0:00:05]} 22. Rc2 {[%emt 0:00:48]} Qd6 {[%emt 0:02:45]} 23. Rbc1 {[%emt 0:02:48]} c4 {[%emt 0:00:16]} 24. d3 {[%emt 0:01:13]} Na5 {[%emt 0:03:43]} 25. Bxe5 {[%emt 0:01:20]} Qxd3 {[%emt 0:00:28]} 26. Qf4 {[%emt 0:02:16]} Rb6 {[%emt 0:00:48]} 27. Rd2 {[%emt 0:00:37]} Qf5 {[%emt 0:00:21]} 28. Qxf5 {[%emt 0:00:30]} gxf5 {[%emt 0:00:05]} 29. Bc7 {[%emt 0:00:33]} Ra6 {[%emt 0:00:43]} 30. Rd5 {[%emt 0:00:22]} Rc8 {[%emt 0:01:18]} 31. Bxa5 {[%emt 0:00:33]} Rxa5 {[%emt 0:00:04]} 32. a4 {[%emt 0:00:33]} Ba3 {[%emt 0:00:00]} 1-0

[Event "Czech Open GM 2020"]
[Site "Pardubice"]
[Date "2020.09.27"]
[Round "8.7"]
[White "Petr, Martin"]
[Black "Szpar, Milosz"]
[Result "1/2-1/2"]
[ECO "D78"]
[WhiteElo "2484"]
[BlackElo "2397"]
[Annotator "ChessBase"]
[PlyCount "116"]
[EventDate "2020.09.21"]
[EventCountry "CZE"]
[SourceTitle "playchess.com"]
[Source "ChessBase"]
[SourceQuality "1"]
[TimeControl "40/5400+30:1800+30"]

1. Nf3 {[%emt 0:00:00]} Nf6 {[%emt 0:00:00]} 2. g3 {[%emt 0:00:00]} d5 {[%emt 0:01:05]} 3. Bg2 {[%emt 0:00:00]} g6 {[%emt 0:02:56]} 4. O-O {[%emt 0:01:14]} Bg7 {[%emt 0:00:05]} 5. d4 {[%emt 0:00:18]} O-O {[%emt 0:00:38]} 6. Nbd2 {[%emt 0:00:54]} Bf5 {[%emt 0:05:45]} 7. c4 {[%emt 0:05:43]} c6 {[%emt 0:01:45]} 8. b3 {[%emt 0:00:05]} a5 {[%emt 0:06:18]} 9. e3 {[%emt 0:18:17]} Bd3 {[%emt 0:16:48]} 10. Re1 {[%emt 0:00:05]} Nbd7 {[%emt 0:00:09]} 11. Bb2 {[%emt 0:07:52]} a4 {[%emt 0:04:42]} 12. cxd5 {[%emt 0:01:54]} Nxd5 {[%emt 0:03:33]} 13. bxa4 {[%emt 0:05:10]} Nc5 {[%emt 0:09:11]} 14. Rc1 {[%emt 0:18:17]} Nxa4 {[%emt 0:01:29]} 15. Ba1 {[%emt 0:00:05]} Bb5 {[%emt 0:07:02]} 16. Qb3 {[%emt 0:00:16]} Nab6 {[%emt 0:02:12]} 17. e4 {[%emt 0:02:06]} Nc7 {[%emt 0:01:11]} 18. d5 {[%emt 0:02:06]} Bxa1 {[%emt 0:01:10]} 19. Rxa1 {[%emt 0:00:04]} Qd6 {[%emt 0:01:34]} 20. Qe3 {[%emt 0:03:48]} Nd7 {[%emt 0:06:00]} 21. e5 {[%emt 0:01:07]} Qa3 {[%emt 0:02:19]} 22. Qh6 {[%emt 0:01:06]} f6 {[%emt 0:00:22]} 23. d6 {[%emt 0:07:01]} exd6 {[%emt 0:05:13]} 24. exf6 {[%emt 0:00:05]} Nxf6 {[%emt 0:01:07]} 25. Re7 {[%emt 0:01:34]} Rf7 {[%emt 0:00:38]} 26. Rxf7 {[%emt 0:01:16]} Kxf7 {[%emt 0:00:06]} 27. Ng5+ {[%emt 0:02:07]} Kg8 {[%emt 0:00:42]} 28. Nde4 {[%emt 0:09:08]} Qb2 {[%emt 0:01:56]} 29. Rd1 {[%emt 0:00:15]} Rxa2 {[%emt 0:05:03]} 30. h4 {[%emt 0:05:09]} Ra1 {[%emt 0:02:06]} 31. Nxf6+ {[%emt 0:02:00]} Qxf6 {[%emt 0:00:05]} 32. Qxh7+ {[%emt 0:00:10]} Kf8 {[%emt 0:00:04]} 33. Qxc7 {[%emt 0:00:14]} Rxd1+ {[%emt 0:00:21]} 34. Kh2 {[%emt 0:00:04]} Qe7 {[%emt 0:02:13]} 35. Qc8+ {[%emt 0:02:56]} Kg7 {[%emt 0:01:17]} 36. Qg4 {[%emt 0:01:45]} Re1 {[%emt 0:01:41]} 37. Be4 {[%emt 0:00:37]} Rxe4 {[%emt 0:06:31]} 38. Nxe4 {[%emt 0:00:07]} Bd3 {[%emt 0:00:58]} 39. Ng5 {[%emt 0:00:19]} Bf5 {[%emt 0:00:52]} 40. Qf3 {[%emt 0:00:38]} d5 {[%emt 0:01:21]} 41. Qf4 {[%emt 0:05:37]} c5 {[%emt 0:07:50]} 42. h5 {[%emt 0:02:33]} d4 {[%emt 0:09:42]} 43. g4 {[%emt 0:02:43]} Bd7 {[%emt 0:01:50]} 44. Kg3 {[%emt 0:01:39]} gxh5 {[%emt 0:01:53]} 45. gxh5 {[%emt 0:00:11]} Qf6 {[%emt 0:02:01]} 46. Qxf6+ {[%emt 0:05:38]} Kxf6 {[%emt 0:00:09]} 47. Ne4+ {[%emt 0:00:05]} Kg7 {[%emt 0:02:20]} 48. Nxc5 {[%emt 0:00:06]} Be8 {[%emt 0:00:36]} 49. Ne6+ {[%emt 0:01:23]} Kh6 {[%emt 0:00:47]} 50. Nxd4 {[%emt 0:00:06]} Kxh5 {[%emt 0:01:06]} 51. Kf4 {[%emt 0:00:08]} Kg6 {[%emt 0:01:53]} 52. Ke5 {[%emt 0:00:06]} Kf7 {[%emt 0:01:11]} 53. f4 {[%emt 0:00:06]} b5 {[%emt 0:00:29]} 54. Kd6 {[%emt 0:00:44]} Kf6 {[%emt 0:00:28]} 55. Kc5 {[%emt 0:00:06]} Bd7 {[%emt 0:00:07]} 56. Nxb5 {[%emt 0:00:06]} Bxb5 {[%emt 0:00:04]} 57. Kxb5 {[%emt 0:00:05]} Kf5 {[%emt 0:00:02]} 58. Kc5 {[%emt 0:00:06]} Kxf4 {[%emt 0:00:02]} 1/2-1/2

[Event "Czech Open GM 2020"]
[Site "Pardubice"]
[Date "2020.09.27"]
[Round "8.8"]
[White "Vokac, Marek"]
[Black "Vrolijk, Liam"]
[Result "0-1"]
[ECO "A11"]
[WhiteElo "2365"]
[BlackElo "2481"]
[Annotator "ChessBase"]
[PlyCount "110"]
[EventDate "2020.09.21"]
[EventCountry "CZE"]
[SourceTitle "playchess.com"]
[Source "ChessBase"]
[SourceQuality "1"]
[TimeControl "40/5400+30:1800+30"]

1. Nf3 {[%emt 0:00:00]} d5 {[%emt 0:00:21]} 2. g3 {[%emt 0:00:00]} Bg4 {[%emt 0:01:34]} 3. Bg2 {[%emt 0:00:00]} e6 {[%emt 0:01:07]} 4. c4 {[%emt 0:01:51]} c6 {[%emt 0:00:37]} 5. Qb3 {[%emt 0:02:53]} Qb6 {[%emt 0:01:13]} 6. Ne5 {[%emt 0:10:47]} Bh5 {[%emt 0:07:54]} 7. cxd5 {[%emt 0:05:17]} exd5 {[%emt 0:02:27]} 8. Nc3 {[%emt 0:04:45]} Nf6 {[%emt 0:02:28]} 9. d4 {[%emt 0:06:23]} Nbd7 {[%emt 0:07:01]} 10. Nxd7 {[%emt 0:01:07]} Nxd7 {[%emt 0:00:12]} 11. O-O {[%emt 0:06:46]} Bd6 {[%emt 0:05:03]} 12. e4 {[%emt 0:05:46]} Qxb3 {[%emt 0:03:29]} 13. axb3 {[%emt 0:00:03]} dxe4 {[%emt 0:00:09]} 14. Nxe4 {[%emt 0:00:06]} Bb4 {[%emt 0:02:15]} 15. Bd2 {[%emt 0:07:26]} Bxd2 {[%emt 0:00:27]} 16. Nxd2 {[%emt 0:00:03]} O-O-O {[%emt 0:09:02]} 17. Rxa7 {[%emt 0:03:06]} Nb6 {[%emt 0:12:14]} 18. Ra5 {[%emt 0:07:15]} Bg4 {[%emt 0:03:44]} 19. Nc4 {[%emt 0:06:38]} Kc7 {[%emt 0:00:20]} 20. Ne5 {[%emt 0:19:52]} Be6 {[%emt 0:00:51]} 21. Ra7 {[%emt 0:03:08]} Nc8 {[%emt 0:00:44]} 22. Ra4 {[%emt 0:00:38]} Bxb3 {[%emt 0:02:59]} 23. Rb4 {[%emt 0:00:00]} Be6 {[%emt 0:00:26]} 24. Rc1 {[%emt 0:00:03]} Ne7 {[%emt 0:01:32]} 25. Nd3 {[%emt 0:02:05]} Nd5 {[%emt 0:02:39]} 26. Rbc4 {[%emt 0:00:30]} f6 {[%emt 0:01:13]} 27. Nc5 {[%emt 0:00:57]} Rhe8 {[%emt 0:03:07]} 28. Nxe6+ {[%emt 0:01:21]} Rxe6 {[%emt 0:00:08]} 29. Rc5 {[%emt 0:00:49]} Red6 {[%emt 0:00:23]} 30. Re1 {[%emt 0:00:45]} Nb6 {[%emt 0:01:05]} 31. Bh3 {[%emt 0:00:52]} Rxd4 {[%emt 0:00:48]} 32. Rcc1 {[%emt 0:01:56]} Nd5 {[%emt 0:00:48]} 33. Re2 {[%emt 0:01:02]} g6 {[%emt 0:01:07]} 34. Bg2 {[%emt 0:00:42]} Nb4 {[%emt 0:00:13]} 35. Bf3 {[%emt 0:00:49]} R8d7 {[%emt 0:02:07]} 36. Rc3 {[%emt 0:01:30]} Nd3 {[%emt 0:01:39]} 37. Be4 {[%emt 0:00:18]} Nxb2 {[%emt 0:04:32]} 38. Bxc6 {[%emt 0:00:40]} Nd1 {[%emt 0:00:07]} 39. Bxd7+ {[%emt 0:00:18]} Nxc3 {[%emt 0:00:08]} 40. Rc2 {[%emt 0:00:03]} Kxd7 {[%emt 0:01:33]} 41. Rxc3 {[%emt 0:30:01]} b5 {[%emt 0:30:11]} 42. Kf1 {[%emt 0:00:47]} b4 {[%emt 0:00:29]} 43. Rc5 {[%emt 0:00:00]} Kd6 {[%emt 0:00:00]} 44. Rc8 {[%emt 0:00:00]} Re4 {[%emt 0:00:00]} 45. h4 {[%emt 0:00:00]} Kd5 {[%emt 0:00:00]} 46. Rc7 {[%emt 0:00:00]} h5 {[%emt 0:00:00]} 47. Rb7 {[%emt 0:00:00]} Kc4 {[%emt 0:00:00]} 48. Rb6 {[%emt 0:00:00]} b3 {[%emt 0:00:00]} 49. Rc6+ {[%emt 0:00:00]} Kd3 {[%emt 0:00:00]} 50. Rxf6 {[%emt 0:00:00]} b2 {[%emt 0:00:00]} 51. Rb6 {[%emt 0:00:00]} Kc3 {[%emt 0:00:00]} 52. Rxb2 {[%emt 0:00:00]} Kxb2 {[%emt 0:00:00]} 53. f3 {[%emt 0:00:00]} Re8 {[%emt 0:00:00]} 54. Kf2 {[%emt 0:00:00]} Kc3 {[%emt 0:00:00]} 55. g4 {[%emt 0:00:00]} Kd4 {[%emt 0:00:00]} 0-1

[Event "Czech Open GM 2020"]
[Site "Pardubice"]
[Date "2020.09.27"]
[Round "8.9"]
[White "Haba, Petr"]
[Black "Bulockin, Martin"]
[Result "1/2-1/2"]
[ECO "E11"]
[WhiteElo "2461"]
[BlackElo "2297"]
[Annotator "ChessBase"]
[PlyCount "54"]
[EventDate "2020.09.21"]
[EventCountry "CZE"]
[SourceTitle "playchess.com"]
[Source "ChessBase"]
[SourceQuality "1"]
[TimeControl "40/5400+30:1800+30"]

1. d4 {[%emt 0:00:00]} Nf6 {[%emt 0:00:00]} 2. c4 {[%emt 0:00:02]} e6 {[%emt 0:00:13]} 3. g3 {[%emt 0:00:22]} Bb4+ {[%emt 0:01:24]} 4. Nd2 {[%emt 0:01:30]} O-O {[%emt 0:03:29]} 5. Bg2 {[%emt 0:01:04]} d6 {[%emt 0:01:32]} 6. Ngf3 {[%emt 0:00:55]} Nbd7 {[%emt 0:01:40]} 7. O-O {[%emt 0:00:16]} Bxd2 {[%emt 0:01:40]} 8. Qxd2 {[%emt 0:02:13]} Ne4 {[%emt 0:01:52]} 9. Qc2 {[%emt 0:01:12]} f5 {[%emt 0:00:48]} 10. Ne1 {[%emt 0:04:20]} Ng5 {[%emt 0:11:45]} 11. b3 {[%emt 0:04:23]} Qf6 {[%emt 0:04:22]} 12. Nd3 {[%emt 0:07:32]} Rb8 {[%emt 0:07:02]} 13. c5 {[%emt 0:04:06]} Nf7 {[%emt 0:05:28]} 14. Rd1 {[%emt 0:11:13]} Qe7 {[%emt 0:06:21]} 15. a4 {[%emt 0:13:10]} Nf6 {[%emt 0:05:16]} 16. Ba3 {[%emt 0:04:39]} Rd8 {[%emt 0:05:03]} 17. cxd6 {[%emt 0:03:19]} cxd6 {[%emt 0:01:22]} 18. Ne5 {[%emt 0:00:44]} Ne8 {[%emt 0:01:27]} 19. Rac1 {[%emt 0:01:13]} Qf6 {[%emt 0:02:09]} 20. Nxf7 {[%emt 0:02:13]} Qxf7 {[%emt 0:00:45]} 21. Qd2 {[%emt 0:07:11]} d5 {[%emt 0:05:23]} 22. Rc2 {[%emt 0:03:09]} b6 {[%emt 0:02:42]} 23. Rdc1 {[%emt 0:00:46]} Ba6 {[%emt 0:01:18]} 24. Bf1 {[%emt 0:04:46]} h6 {[%emt 0:02:13]} 25. Qe3 {[%emt 0:03:28]} Qd7 {[%emt 0:01:42]} 26. Qd2 {[%emt 0:12:11]} Rbc8 {[%emt 0:08:22]} 27. Qb4 {[%emt 0:00:15]} Rxc2 {[%emt 0:05:34]} 1/2-1/2